bitfinex/quotes_SOLUSD_20250802
["timestamp","ask_amount","ask_price","bid_price","bid_amount"]
[1754124492153,0.69,164.24,164.19,0.68]
[1754124492331,4.75084841,164.24,164.23,8.90695416]
[1754124492737,13.65780257,164.24,164.17,130.68030947]
[1754124493037,26.0,164.22,164.17,130.68030947]
[1754124493236,0.69,164.21,164.18,5.35232893]
[1754124493440,0.69,164.2,164.19,5.35232893]
[1754124493742,0.69,164.2,164.18,5.35232893]
[1754124493941,0.69,164.2,164.19,5.35232893]
[1754124494152,0.69,164.19,164.17,130.68030947]
[1754124494338,0.69,164.18,164.17,130.68030947]
[1754124494533,0.69,164.18,164.17,136.0326384]
[1754124495149,0.69,164.2,164.17,136.0326384]
[1754124495344,0.69,164.19,164.17,136.0326384]
[1754124496175,0.69,164.18,164.17,130.68030947]
[1754124496461,4.06455962,164.2,164.17,130.68030947]
[1754124496756,4.75455962,164.19,164.17,130.68030947]
[1754124496927,4.06455962,164.2,164.17,130.68030947]
[1754124497130,0.69,164.18,164.17,130.68030947]
[1754124497328,4.75455962,164.18,164.17,130.68030947]
[1754124497545,26.69,164.18,164.17,130.68030947]
[1754124497764,30.75455962,164.18,164.17,130.68030947]
[1754124498058,4.75455962,164.18,164.15,48.65232893]
[1754124498259,4.75455962,164.17,164.15,48.65232893]
[1754124498465,0.69,164.17,164.15,48.65232893]
[1754124498644,4.06455962,164.18,164.15,48.65232893]
[1754124498842,4.75455962,164.18,164.15,48.65232893]
[1754124499050,0.69,164.18,164.15,48.65232893]
[1754124499257,4.06455962,164.17,164.15,48.65232893]
[1754124499432,0.69,164.18,164.16,5.35232893]
[1754124499633,4.75455962,164.18,164.16,5.35232893]
[1754124499858,0.69,164.18,164.16,5.35232893]
[1754124500077,30.06455962,164.18,164.17,5.35232893]
[1754124500540,30.06455962,164.18,164.16,5.35232893]
[1754124500864,4.06455962,164.17,164.16,5.35232893]
[1754124501082,4.75455962,164.17,164.13,43.38]
[1754124501259,4.75455962,164.16,164.14,5.35232893]
[1754124501465,0.69,164.15,164.14,5.35232893]
[1754124502267,4.06455962,164.16,164.14,5.35232893]
[1754124502565,4.75455962,164.16,164.14,5.35232893]
[1754124503336,4.75455962,164.16,164.14,3.87388592]
[1754124504366,0.69,164.15,164.12,48.73232893]
[1754124504658,0.69,164.14,164.12,43.38]
[1754124505045,0.69,164.14,164.11,5.35232893]
[1754124505253,0.69,164.14,164.12,5.35232893]
[1754124505568,4.75455962,164.16,164.13,5.35232893]
[1754124505770,26.0,164.15,164.14,5.35232893]
[1754124506271,26.0,164.15,164.11,0.68]
[1754124506272,26.0,164.15,164.13,5.35232893]
[1754124506455,26.0,164.15,164.1,43.42]
[1754124506456,26.0,164.15,164.14,5.35232893]
[1754124506658,172.1,164.17,164.14,6.03232893]
[1754124506844,172.1,164.17,164.15,5.35232893]
[1754124507660,172.1,164.17,164.1,43.42]
[1754124507661,172.1,164.17,164.16,5.35232893]
[1754124509576,146.1,164.17,164.16,6.03232893]
[1754124509747,5.08592894,164.23,164.16,11.38465786]
[1754124509748,44.05,164.23,164.16,11.38465786]
[1754124509955,4.06804399,164.22,164.2,5.35232893]
[1754124510250,26.0,164.21,164.2,5.35232893]
[1754124510454,30.06804399,164.21,164.2,5.35232893]
[1754124510853,4.06804399,164.21,164.2,5.35232893]
[1754124511052,4.06868158,164.23,164.2,6.02232893]
[1754124511249,4.06868158,164.23,164.22,5.35232893]
[1754124511463,4.06868158,164.23,164.2,0.67]
[1754124511664,4.06868158,164.23,164.22,5.35232893]
[1754124512045,48.47592894,164.26,164.22,5.35232893]
[1754124512046,0.71,164.26,164.22,5.35232893]
[1754124512369,26.03,164.26,164.25,5.35232893]
[1754124512572,4.09942807,164.26,164.25,5.35232893]
[1754124512872,0.03,164.26,164.25,5.35232893]
[1754124513070,26.03,164.26,164.25,5.35232893]
[1754124513367,30.77942807,164.26,164.24,5.35232893]
[1754124513545,4.06942807,164.25,164.21,0.67]
[1754124513742,0.68,164.24,164.18,0.67]
[1754124513941,26.68,164.24,164.21,5.35232893]
[1754124514175,4.74942807,164.23,164.21,5.35232893]
[1754124514664,0.68,164.22,164.21,5.35232893]
[1754124515055,4.06942807,164.23,164.21,5.35232893]
[1754124515268,4.74942807,164.23,164.21,5.35232893]
[1754124515583,0.68,164.23,164.22,5.35232893]
[1754124515941,26.0,164.24,164.22,5.35232893]
[1754124516145,26.68,164.24,164.22,5.35232893]
[1754124517392,26.0,164.24,164.22,5.35232893]
[1754124517875,26.03,164.26,164.23,5.35232893]
[1754124518090,26.03,164.26,164.25,5.35232893]
[1754124518263,30.1017833,164.26,164.25,5.35232893]
[1754124518465,26.0,164.25,164.24,5.35232893]
[1754124518657,30.7517833,164.25,164.23,5.35232893]
[1754124518859,4.0717833,164.24,164.2,0.67]
[1754124519576,0.68,164.23,164.18,0.67]
[1754124519879,0.68,164.22,164.18,0.67]
[1754124520066,0.68,164.22,164.2,5.35232893]
[1754124520450,4.7517833,164.24,164.21,5.35232893]
[1754124520655,26.0,164.23,164.22,5.35232893]
[1754124521370,30.07464939,164.23,164.22,5.35232893]
[1754124522374,30.75464939,164.23,164.22,5.35232893]
[1754124523693,26.0,164.23,164.22,5.35232893]
[1754124524408,30.07800875,164.23,164.19,0.67]
[1754124524563,172.1,164.25,164.22,6.02232893]
[1754124524765,4.07840376,164.24,164.23,0.67]
[1754124524983,4.07840376,164.24,164.23,5.35232893]
[1754124526262,4.07840376,164.24,164.23,6.02232893]
[1754124526863,4.07840376,164.24,164.23,5.35232893]
[1754124530589,172.1,164.25,164.23,5.35232893]
[1754124530590,0.03,164.26,164.23,6.02232893]
[1754124530778,4.10961045,164.26,164.25,5.35232893]
[1754124531694,0.03,164.26,164.25,5.35232893]
[1754124532176,0.03,164.26,164.25,0.67]
[1754124532381,0.03,164.26,164.25,5.35232893]
[1754124533310,0.71,164.26,164.25,5.35232893]
[1754124534364,26.71,164.26,164.21,0.67]
[1754124534702,4.07961045,164.25,164.24,5.35232893]
[1754124535393,4.07788181,164.25,164.24,6.02232893]
[1754124535983,0.03,164.26,164.24,6.02232893]
[1754124536168,0.03,164.26,164.25,5.35232893]
[1754124536886,0.03,164.26,164.25,6.02232893]
[1754124540511,0.03,164.28,164.25,6.02232893]
[1754124540822,0.03,164.31,164.27,5.35232893]
[1754124540985,0.03,164.31,164.3,5.35232893]
[1754124541498,0.03,164.31,164.3,6.02232893]
[1754124541715,0.03,164.31,164.3,5.35232893]
[1754124542082,0.03,164.31,164.3,6.02232893]
[1754124542483,0.2,164.32,164.31,16.78468397]
[1754124542714,0.2,164.32,164.31,28.15934183]
[1754124545046,0.2,164.34,164.31,28.15934183]
[1754124545213,0.2,164.34,164.33,5.35232893]
[1754124545399,0.2,164.38,164.33,22.1370129]
[1754124545598,0.2,164.38,164.37,5.35232893]
[1754124546091,0.2,164.38,164.37,6.02232893]
[1754124546296,0.2,164.43,164.37,11.37465786]
[1754124546501,0.2,164.43,164.42,5.35232893]
[1754124547109,0.2,164.43,164.42,6.02232893]
[1754124547288,0.03,164.44,164.42,6.02232893]
[1754124547496,0.03,164.47,164.43,6.63049045]
[1754124547803,0.03,164.47,164.45,5.35232893]
[1754124548003,0.03,164.47,164.45,48.63232893]
[1754124548201,0.03,164.47,164.45,43.28]
[1754124548536,9.18956748,164.46,164.45,49.30232893]
[1754124548898,0.03,164.46,164.45,49.30232893]
[1754124549318,0.03,164.46,164.45,43.28]
[1754124549634,0.03,164.46,164.42,42.78468397]
[1754124549635,0.75,164.46,164.42,43.28]
[1754124549923,0.75,164.46,164.44,5.35232893]
[1754124550125,0.72,164.45,164.44,5.35232893]
[1754124551005,0.03,164.46,164.44,6.02232893]
[1754124551217,0.75,164.46,164.42,43.28]
[1754124551614,0.72,164.45,164.41,7.78979193]
[1754124551922,0.72,164.45,164.41,5.35232893]
[1754124552125,0.72,164.44,164.42,5.35232893]
[1754124552318,0.72,164.43,164.42,5.35232893]
[1754124553022,0.03,164.46,164.42,6.02232893]
[1754124553238,0.03,164.46,164.45,5.35232893]
[1754124554004,0.75,164.46,164.45,5.35232893]
[1754124556208,0.03,164.46,164.45,5.35232893]
[1754124558856,0.03,164.46,164.41,0.67]
[1754124559020,0.75,164.46,164.42,5.35232893]
[1754124559605,0.75,164.46,164.41,43.44]
[1754124559829,5.35232893,164.44,164.4,132.93494773]
[1754124560040,5.35232893,164.43,164.4,132.93494773]
[1754124560328,0.72,164.42,164.4,130.49748373]
[1754124560829,0.72,164.41,164.4,130.49748373]
[1754124561723,6.07232893,164.44,164.4,130.49748373]
[1754124561900,0.72,164.43,164.4,135.84981266]
[1754124562102,0.72,164.45,164.41,5.35232893]
[1754124562550,31.38232893,164.46,164.41,5.35232893]
[1754124562709,0.72,164.44,164.41,5.35232893]
[1754124563529,31.38232893,164.46,164.42,5.35232893]
[1754124563734,0.72,164.45,164.42,5.35232893]
[1754124564035,0.72,164.44,164.42,5.35232893]
[1754124564431,31.38232893,164.46,164.4,130.49748373]
[1754124564432,6.07232893,164.43,164.4,130.49748373]
[1754124564638,0.72,164.42,164.4,130.49748373]
[1754124564947,0.72,164.41,164.4,130.49748373]
[1754124565149,6.07232893,164.41,164.4,130.49748373]
[1754124567246,0.72,164.41,164.4,130.49748373]
[1754124568139,26.72,164.41,164.4,130.49748373]
[1754124568736,32.07232893,164.41,164.4,130.49748373]
[1754124570024,26.72,164.41,164.4,130.49748373]
[1754124570227,26.0,164.41,164.4,130.49748373]
[1754124570742,32.02232893,164.41,164.4,130.49748373]
[1754124571927,54.88936798,164.41,164.4,130.49748373]
[1754124572251,16.78468397,164.4,164.33,43.46]
[1754124572425,5.35232893,164.36,164.31,6.07232893]
[1754124572633,0.67,164.36,164.32,48.81232893]
[1754124572825,0.67,164.36,164.32,49.47232893]
[1754124573027,32.02232893,164.38,164.33,5.35232893]
[1754124573224,26.67,164.36,164.32,49.47232893]
[1754124573753,26.67,164.36,164.33,5.35232893]
[1754124573754,26.0,164.36,164.33,5.35232893]
[1754124574260,26.67,164.36,164.33,5.35232893]
[1754124574416,26.0,164.36,164.33,6.01232893]
[1754124575245,26.67,164.36,164.32,48.81232893]
[1754124575547,0.67,164.35,164.32,43.46]
[1754124575734,0.67,164.34,164.31,5.41232893]
[1754124576132,31.35232893,164.36,164.31,5.41232893]
[1754124576369,0.67,164.35,164.31,0.06]
[1754124576662,6.02232893,164.35,164.32,0.06]
[1754124576824,0.67,164.34,164.32,0.06]
[1754124577226,31.35232893,164.36,164.32,0.06]
[1754124577227,26.67,164.36,164.32,5.41232893]
[1754124578265,0.67,164.35,164.32,0.06]
[1754124578550,0.67,164.34,164.32,0.06]
[1754124579843,6.02232893,164.33,164.32,0.06]
[1754124580555,32.02232893,164.33,164.32,0.06]
[1754124580931,36.07171196,164.33,164.32,0.06]
[1754124581255,52.85639593,164.33,164.32,0.06]
[1754124582647,96.25639593,164.33,164.32,0.06]
[1754124582850,96.25905147,164.33,164.32,0.06]
[1754124583446,102.3443676,164.33,164.32,0.06]
[1754124584249,96.25905147,164.33,164.32,0.06]
[1754124587142,102.3443676,164.33,164.32,0.06]
[1754124587344,107.69669653,164.33,164.32,0.06]
[1754124588163,96.25905147,164.33,164.32,0.06]
[1754124588562,102.3443676,164.33,164.32,0.06]
[1754124589167,105.52144515,164.33,164.32,0.06]
[1754124589662,110.87377408,164.33,164.32,0.06]
[1754124590036,110.87377408,164.33,164.31,0.06]
[1754124590037,16.78468397,164.32,164.31,0.06]
[1754124590365,32.2113804,164.32,164.31,0.06]
[1754124590663,32.2113804,164.32,164.3,0.06]
[1754124590842,70.19905147,164.31,164.3,0.06]
[1754124591354,76.28510831,164.31,164.3,0.06]
[1754124591745,78.72644031,164.31,164.3,0.06]
[1754124592973,26.0,164.23,164.19,0.66]
[1754124593169,31.35232893,164.23,164.19,0.66]
[1754124593370,31.35232893,164.23,164.18,5.35232893]
[1754124593678,31.35232893,164.23,164.2,0.66]
[1754124594044,26.0,164.23,164.2,0.66]
[1754124594362,5.35232893,164.21,164.17,0.66]
[1754124594551,5.35232893,164.21,164.18,0.66]
[1754124594752,5.35232893,164.21,164.17,5.35232893]
[1754124594753,5.35232893,164.2,164.16,6.07232893]
[1754124595065,5.35232893,164.2,164.16,5.41232893]
[1754124595275,5.35232893,164.21,164.17,0.66]
[1754124595448,5.35232893,164.21,164.16,5.41232893]
[1754124595654,5.35232893,164.21,164.17,0.66]
[1754124595852,5.35232893,164.21,164.18,0.66]
[1754124596576,26.0,164.2,164.19,0.66]
[1754124596873,26.0,164.2,164.18,5.35232893]
[1754124597052,26.0,164.21,164.19,5.35232893]
[1754124597446,26.0,164.21,164.16,0.06]
[1754124597447,26.0,164.21,164.2,0.66]
[1754124598046,189.44,164.25,164.2,6.01232893]
[1754124598246,26.0,164.22,164.21,5.35232893]
[1754124598466,26.0,164.22,164.21,6.01232893]
[1754124598667,26.0,164.22,164.21,0.66]
[1754124599176,26.0,164.22,164.18,6.01232893]
[1754124599365,26.0,164.22,164.19,0.66]
[1754124599569,26.0,164.22,164.2,0.66]
[1754124599755,26.0,164.22,164.19,5.35232893]
[1754124600080,26.0,164.22,164.21,0.66]
[1754124600461,26.0,164.22,164.19,6.01232893]
[1754124600660,26.0,164.22,164.2,6.05232893]
[1754124600860,26.0,164.22,164.21,0.7]
[1754124601394,26.0,164.2,164.17,0.06]
[1754124601685,5.35232893,164.2,164.17,0.06]
[1754124601984,5.35232893,164.19,164.17,0.06]
[1754124602363,6.04232893,164.19,164.17,0.06]
[1754124602557,5.35232893,164.19,164.17,0.06]
[1754124603088,6.04232893,164.18,164.17,0.06]
[1754124603662,5.35232893,164.19,164.17,0.06]
[1754124604176,26.0,164.18,164.17,0.76]
[1754124604375,26.0,164.18,164.17,5.41232893]
[1754124604883,26.0,164.18,164.17,0.76]
[1754124605085,26.0,164.18,164.17,6.11232893]
[1754124605287,172.1,164.21,164.17,6.11232893]
[1754124605863,178.14232893,164.21,164.17,0.76]
[1754124606158,178.14232893,164.21,164.17,0.06]
[1754124606591,26.0,164.19,164.18,0.7]
[1754124606965,5.35232893,164.24,164.18,6.05232893]
[1754124607166,48.69232893,164.24,164.2,5.35232893]
[1754124607372,26.0,164.21,164.19,6.05232893]
[1754124608086,26.0,164.21,164.19,5.35232893]
[1754124608404,26.0,164.21,164.2,6.05232893]
[1754124608567,26.0,164.23,164.2,6.05232893]
[1754124608764,6.04232893,164.25,164.2,6.05232893]
[1754124609090,26.0,164.22,164.21,5.35232893]
[1754124609804,32.04232893,164.22,164.17,5.41232893]
[1754124609979,0.69,164.21,164.17,5.41232893]
[1754124610376,0.69,164.21,164.18,5.35232893]
[1754124611688,0.69,164.21,164.19,5.35232893]
[1754124612082,74.69232893,164.23,164.19,5.35232893]
[1754124612393,69.34,164.23,164.2,6.05232893]
[1754124612595,26.0,164.22,164.2,6.05232893]
[1754124613579,26.0,164.22,164.21,5.35232893]
[1754124613786,26.0,164.22,164.21,6.05232893]
[1754124614699,26.0,164.22,164.17,0.06]
[1754124614999,6.04232893,164.21,164.17,5.41232893]
[1754124615297,0.69,164.2,164.17,5.41232893]
[1754124615467,146.1,164.21,164.19,5.35232893]
[1754124615669,146.1,164.21,164.19,6.05232893]
[1754124615889,146.1,164.21,164.18,5.35232893]
[1754124616301,146.1,164.21,164.19,5.35232893]
[1754124616998,146.79,164.21,164.18,5.35232893]
[1754124617207,0.69,164.2,164.18,5.35232893]
[1754124617804,0.69,164.2,164.17,5.41232893]
[1754124617992,146.1,164.21,164.18,5.35232893]
[1754124618591,146.79,164.21,164.18,5.35232893]
[1754124618784,0.69,164.2,164.17,5.41232893]
[1754124619404,26.0,164.18,164.17,0.06]
[1754124619701,26.0,164.18,164.17,5.41232893]
[1754124620185,26.0,164.18,164.17,6.11232893]
[1754124620796,146.1,164.21,164.17,6.11232893]
[1754124620998,146.1,164.21,164.2,5.35232893]
[1754124621309,146.1,164.21,164.19,5.35232893]
[1754124622388,146.1,164.21,164.2,5.35232893]
[1754124624307,146.1,164.21,164.19,5.35232893]
[1754124624932,146.79,164.21,164.19,5.35232893]
[1754124625479,146.1,164.21,164.19,5.35232893]
[1754124626093,146.79,164.21,164.19,5.35232893]
[1754124626825,0.69,164.2,164.17,0.06]
[1754124627194,151.45232893,164.21,164.17,0.06]
[1754124627394,0.69,164.19,164.17,0.06]
[1754124627593,0.69,164.19,164.17,5.41232893]
[1754124627923,0.69,164.2,164.17,5.41232893]
[1754124629141,26.0,164.19,164.18,5.35232893]
[1754124629427,146.1,164.21,164.19,0.7]
[1754124629731,0.69,164.24,164.2,6.05232893]
[1754124629898,30.07996769,164.23,164.21,5.35232893]
[1754124630090,4.07996769,164.22,164.21,5.35232893]
[1754124630410,30.07996769,164.22,164.2,5.35232893]
[1754124630720,4.07996769,164.21,164.2,5.35232893]
[1754124631593,4.07996769,164.21,164.2,6.01232893]
[1754124631791,26.0,164.23,164.2,6.01232893]
[1754124631991,4.08301987,164.22,164.21,5.35232893]
[1754124633440,4.08301987,164.22,164.21,6.01232893]
[1754124633627,4.08301987,164.25,164.21,6.01232893]
[1754124633823,30.08301987,164.24,164.23,5.35232893]
[1754124634426,4.08301987,164.24,164.23,6.01232893]
[1754124634639,4.08301987,164.26,164.23,6.01232893]
[1754124634844,4.08301987,164.25,164.24,0.66]
[1754124635034,4.08301987,164.28,164.24,6.01232893]
[1754124635370,4.08301987,164.27,164.25,5.35232893]
[1754124635655,4.76301987,164.26,164.22,5.35232893]
[1754124635820,4.76301987,164.25,164.17,0.72]
[1754124636025,26.0,164.23,164.17,0.72]
[1754124636225,4.08301987,164.22,164.17,0.72]
[1754124636437,4.76301987,164.22,164.17,0.72]
[1754124636617,4.76301987,164.21,164.18,5.35232893]
[1754124636814,4.08301987,164.2,164.18,5.35232893]
[1754124637244,4.76301987,164.2,164.18,5.35232893]
[1754124637437,0.68,164.2,164.18,5.35232893]
[1754124637638,4.76301987,164.2,164.18,5.35232893]
[1754124637845,0.68,164.19,164.17,5.41232893]
[1754124638958,0.68,164.18,164.17,0.06]
[1754124639447,4.76301987,164.18,164.17,0.06]
[1754124639649,0.68,164.18,164.17,0.06]
[1754124639845,4.76301987,164.18,164.17,0.06]
[1754124640051,0.68,164.18,164.17,0.06]
[1754124640464,4.76301987,164.18,164.17,0.06]
[1754124640637,26.68,164.18,164.17,0.06]
[1754124640836,36.1153488,164.18,164.17,0.06]
[1754124642135,30.76301987,164.18,164.17,0.06]
[1754124642353,30.08301987,164.18,164.17,0.06]
[1754124642574,30.76301987,164.18,164.17,0.06]
[1754124644250,36.1153488,164.18,164.17,0.06]
[1754124646277,30.08301987,164.18,164.17,0.06]
[1754124646984,30.76301987,164.18,164.17,0.06]
[1754124648457,30.08301987,164.18,164.17,0.06]
[1754124648785,30.76301987,164.18,164.17,0.06]
[1754124649284,52.90003277,164.18,164.17,0.06]
[1754124650491,96.22003277,164.18,164.17,0.06]
[1754124651006,242.32003277,164.18,164.17,0.06]
[1754124653856,236.96770384,164.18,164.17,0.06]
[1754124654077,242.32003277,164.18,164.17,0.06]
[1754124654502,248.41090863,164.18,164.17,0.06]
[1754124655189,250.85373163,164.18,164.17,0.06]
[1754124655396,254.03365666,164.18,164.17,0.06]
[1754124655780,107.93365666,164.18,164.17,0.06]
[1754124656295,112.99870488,164.18,164.17,0.06]
[1754124658180,101.8427808,164.18,164.17,0.06]
[1754124658499,99.3999578,164.18,164.17,0.06]
[1754124658706,101.8427808,164.18,164.17,0.06]
[1754124658882,55.3999578,164.18,164.17,0.06]
[1754124659086,72.7199578,164.18,164.17,0.06]
[1754124659302,47.40301987,164.18,164.17,0.06]
[1754124660178,30.08301987,164.18,164.17,0.06]
[1754124660380,30.08301987,164.18,164.17,0.72]
[1754124661311,30.08301987,164.18,164.17,0.06]
[1754124661993,30.08301987,164.18,164.17,0.78]
[1754124662297,48.67232893,164.22,164.17,6.13232893]
[1754124662598,4.07413381,164.21,164.18,6.07232893]
[1754124662974,36.12646274,164.21,164.17,0.06]
[1754124663210,26.0,164.19,164.18,6.07232893]
[1754124663902,26.0,164.2,164.18,6.07232893]
[1754124664081,26.0,164.2,164.19,0.72]
[1754124664277,26.0,164.2,164.19,6.07232893]
[1754124666099,26.0,164.2,164.19,0.72]
[1754124666290,26.0,164.2,164.19,6.07232893]
[1754124667408,0.7,164.26,164.19,6.07232893]
[1754124667592,26.0,164.25,164.2,0.72]
[1754124667788,4.07229091,164.24,164.23,5.35232893]
[1754124667993,4.07208441,164.24,164.23,5.35232893]
[1754124668289,26.0,164.23,164.21,0.72]
[1754124668596,26.0,164.23,164.17,0.06]
[1754124668597,0.7,164.22,164.17,0.78]
[1754124668793,4.77159203,164.22,164.19,5.35232893]
[1754124668992,26.0,164.23,164.19,5.35232893]
[1754124669176,26.0,164.23,164.19,6.07232893]
[1754124669374,26.7,164.23,164.19,6.07232893]
[1754124669907,26.0,164.21,164.19,5.35232893]
[1754124670090,26.0,164.21,164.19,0.72]
[1754124670294,26.0,164.21,164.19,6.07232893]
[1754124670690,26.0,164.21,164.19,5.35232893]
[1754124670890,26.0,164.21,164.19,6.07232893]
[1754124671190,26.0,164.21,164.19,0.72]
[1754124671402,26.0,164.21,164.19,6.07232893]
[1754124672712,26.0,164.21,164.19,5.35232893]
[1754124674625,26.0,164.21,164.17,0.78]
[1754124674924,26.0,164.21,164.18,5.35232893]
[1754124675094,26.0,164.21,164.18,6.07232893]
[1754124675295,26.0,164.21,164.18,5.35232893]
[1754124675496,26.7,164.21,164.18,5.35232893]
[1754124676221,26.7,164.21,164.19,5.35232893]
[1754124677531,0.7,164.21,164.19,5.35232893]
[1754124678714,4.77114728,164.21,164.18,5.35232893]
[1754124679297,4.77114728,164.21,164.19,5.35232893]
[1754124679609,4.07114728,164.21,164.19,5.35232893]
[1754124680719,4.77114728,164.21,164.19,5.35232893]
[1754124680901,4.07114728,164.21,164.19,5.35232893]
[1754124681697,4.07114728,164.21,164.2,6.07232893]
[1754124682020,146.1,164.22,164.2,6.07232893]
[1754124682320,146.1,164.22,164.21,6.07232893]
[1754124682824,146.1,164.22,164.17,0.06]
[1754124683005,146.1,164.22,164.21,5.35232893]
[1754124683207,146.8,164.22,164.2,5.35232893]
[1754124683409,0.7,164.21,164.19,5.35232893]
[1754124683720,0.7,164.21,164.2,5.35232893]
[1754124684024,146.1,164.22,164.2,5.35232893]
[1754124684606,0.7,164.21,164.2,5.35232893]
[1754124684823,146.1,164.22,164.2,5.35232893]
[1754124686138,146.8,164.22,164.2,5.35232893]
[1754124686914,0.7,164.21,164.2,5.35232893]
[1754124688313,146.1,164.22,164.2,5.35232893]
[1754124688836,0.7,164.21,164.19,5.35232893]
[1754124691442,0.7,164.21,164.17,0.71]
[1754124691613,0.7,164.21,164.19,5.35232893]
[1754124692942,0.7,164.21,164.17,0.71]
[1754124693240,0.7,164.21,164.18,5.35232893]
[1754124693647,0.7,164.21,164.17,0.71]
[1754124693648,26.0,164.19,164.17,0.06]
[1754124693816,26.69,164.18,164.17,0.06]
[1754124694442,30.76146028,164.18,164.17,0.06]
[1754124695013,74.04146028,164.18,164.17,0.06]
[1754124696562,30.76146028,164.18,164.17,0.06]
[1754124697747,52.89847318,164.18,164.17,0.06]
[1754124699450,30.07146028,164.18,164.17,0.06]
[1754124700568,4.07146028,164.18,164.17,6.06232893]
[1754124700881,168.63973219,164.22,164.17,6.06232893]
[1754124700882,189.38,164.22,164.17,6.06232893]
[1754124701169,26.0,164.2,164.19,5.35232893]
[1754124701372,30.07698875,164.2,164.19,5.35232893]
[1754124703481,4.07698875,164.2,164.19,6.00232893]
[1754124703632,4.07698875,164.2,164.17,0.06]
[1754124703633,4.07698875,164.21,164.17,0.06]
[1754124703832,146.1,164.22,164.2,5.35232893]
[1754124704131,4.08453263,164.21,164.2,5.35232893]
[1754124704572,4.77453263,164.21,164.18,5.35232893]
[1754124704859,4.77453263,164.2,164.17,5.41232893]
[1754124705062,4.08453263,164.19,164.17,0.06]
[1754124705235,0.69,164.19,164.17,0.06]
[1754124705430,4.08453263,164.19,164.17,5.41232893]
[1754124705761,4.77453263,164.21,164.18,5.35232893]
[1754124705965,194.73232893,164.22,164.18,5.35232893]
[1754124705966,4.77453263,164.2,164.18,5.35232893]
[1754124706140,4.08453263,164.19,164.18,5.35232893]
[1754124706335,4.08453263,164.21,164.18,5.35232893]
[1754124706663,4.08453263,164.2,164.18,5.35232893]
[1754124706828,4.08453263,164.19,164.18,5.35232893]
[1754124707129,4.08453263,164.21,164.18,5.35232893]
[1754124707328,4.08453263,164.2,164.18,5.35232893]
[1754124707527,4.08453263,164.19,164.18,5.35232893]
[1754124707759,4.08453263,164.2,164.18,5.35232893]
[1754124707962,4.08453263,164.19,164.18,5.35232893]
[1754124708845,30.77453263,164.19,164.17,0.06]
[1754124709050,4.77453263,164.18,164.17,0.06]
[1754124709935,10.12686156,164.18,164.17,0.06]
[1754124710136,53.38686156,164.18,164.17,0.06]
[1754124711941,70.17154553,164.18,164.17,0.06]
[1754124712263,86.67979854,164.18,164.17,0.06]
[1754124712441,42.78468397,164.16,164.15,0.2]
[1754124712638,74.83387446,164.16,164.15,0.2]
[1754124712840,75.52387446,164.16,164.15,0.2]
[1754124713346,16.78468397,164.15,164.12,0.06]
[1754124713662,16.78468397,164.15,164.02,0.75]
[1754124713663,16.78468397,164.12,164.02,0.1]
[1754124713866,74.5744848,164.11,164.02,0.1]
[1754124714033,75.2644848,164.11,164.02,5.45232893]
[1754124714238,77.7086508,164.11,164.02,5.45232893]
[1754124714431,83.80212468,164.11,164.02,0.1]
[1754124715578,78.70918541,164.11,164.02,0.1]
[1754124716451,83.78388467,164.11,164.02,0.1]
[1754124716978,86.84281647,164.11,164.02,0.1]
[1754124717276,86.84281647,164.11,164.02,6.10232893]
[1754124717478,81.76811721,164.11,164.02,6.10232893]
[1754124718079,81.26463371,164.11,164.02,5.45232893]
[1754124718258,87.35810759,164.11,164.04,0.65]
[1754124718763,81.26463371,164.11,164.04,0.65]
[1754124719155,38.74762963,164.11,164.06,0.65]
[1754124719483,78.82046771,164.11,164.06,0.65]